[Event "36th National Sub Junior 2019"]
[Site "Tiruchengode"]
[Date "2019.07.11"]
[Round "4.3"]
[White "Mrudul Dehankar"]
[Black "Rindhiya V"]
[Result "1-0"]
[ECO "C99"]
[WhiteElo "2074"]
[BlackElo "1573"]
[Annotator "NA"]
[PlyCount "83"]
[EventDate "2019.07.09"]
[EventCountry "IND"]
[SourceTitle "playchess.com"]
[Source "ChessBase"]
[SourceQuality "1"]
[TimeControl "5400+30"]

1. e4 {[%emt 0:00:00]} e5 {[%emt 0:00:00]} 2. Nf3 {[%emt 0:00:00]} Nc6 {[%emt 0:00:00]} 3. Bb5 {[%emt 0:00:00]} a6 {[%emt 0:00:00]} 4. Ba4 {[%emt 0:00:00]} Nf6 {[%emt 0:00:00]} 5. O-O {[%emt 0:00:05]} Be7 {[%emt 0:00:00]} 6. Re1 {[%emt 0:00:06]} b5 {[%emt 0:00:00]} 7. Bb3 {[%emt 0:00:06]} O-O {[%emt 0:00:08]} 8. h3 {[%emt 0:00:17]} d6 {[%emt 0:00:02]} 9. c3 {[%emt 0:00:13]} Na5 {[%emt 0:00:07]} 10. Bc2 {[%emt 0:00:05]} c5 {[%emt 0:00:07]} 11. d4 {[%emt 0:00:05]} Qc7 {[%emt 0:00:06]} 12. Nbd2 {[%emt 0:00:34]} cxd4 {[%emt 0:00:08]} 13. cxd4 {[%emt 0:00:06]} Nc6 {[%emt 0:00:06]} 14. Nb3 {[%emt 0:00:40]} a5 {[%emt 0:00:40]} 15. Be3 {[%emt 0:00:51]} a4 {[%emt 0:03:31]} 16. Nbd2 {[%emt 0:01:02]} Nb4 {[%emt 0:02:25]} 17. Bb1 {[%emt 0:01:30]} Be6 {[%emt 0:01:37]} 18. a3 {[%emt 0:00:47]} Na6 {[%emt 0:00:06]} 19. Bd3 {[%emt 0:01:41]} Bd7 {[%emt 0:09:08]} 20. Rc1 {[%emt 0:02:06]} Qb8 {[%emt 0:00:29]} 21. Qe2 $16 {[%emt 0:01:35]} exd4 {[%emt 0:23:10]} 22. Nxd4 {[%emt 0:03:32]} Nc5 {[%emt 0:19:31]} 23. Bxb5 {[%emt 0:08:04]} Bxb5 {[%emt 0:00:02]} 24. Nxb5 {[%emt 0:00:15]} Ra5 {[%emt 0:02:46]} 25. Nd4 {[%emt 0:03:53]} Ra8 {[%emt 0:04:22]} 26. e5 {[%emt 0:07:29]} Nfd7 {[%emt 0:04:56]} 27. Nf5 {[%emt 0:09:40]} Bd8 {[%emt 0:05:46]} 28. Nxd6 {[%emt 0:07:17]} Bb6 {[%emt 0:00:53]} 29. N2c4 {[%emt 0:01:24]} Ne6 {[%emt 0:00:39]} 30. Nxb6 {[%emt 0:07:57]} Nxb6 {[%emt 0:00:02]} 31. Red1 {[%emt 0:03:48]} Nc8 {[%emt 0:00:59]} 32. f4 {[%emt 0:02:23]} Nxd6 {[%emt 0:02:06]} 33. Rxd6 {[%emt 0:01:39]} g6 {[%emt 0:00:44]} 34. f5 {[%emt 0:16:30]} gxf5 {[%emt 0:00:53]} 35. Qf2 {[%emt 0:00:34]} Kh8 {[%emt 0:01:38]} 36. Qxf5 {[%emt 0:03:13]} Qb7 {[%emt 0:01:56]} 37. Qf6+ {[%emt 0:01:18]} Ng7 {[%emt 0:00:01]} 38. Bh6 {[%emt 0:00:40]} Rg8 {[%emt 0:00:03]} 39. Rcd1 {[%emt 0:00:37]} Qc7 {[%emt 0:01:20]} 40. Bxg7+ {[%emt 0:00:19]} Rxg7 {[%emt 0:00:01]} 41. Rd8+ {[%emt 0:00:08]} Rxd8 {[%emt 0:00:02]} 42. Rxd8+ {[%emt 0:00:06]} 1-0

[Event "36th National Sub Junior 2019"]
[Site "Tiruchengode"]
[Date "2019.07.11"]
[Round "4.4"]
[White "Koli, Isha"]
[Black "Jyothsna L"]
[Result "0-1"]
[ECO "C06"]
[WhiteElo "1486"]
[BlackElo "1939"]
[Annotator "NA"]
[PlyCount "53"]
[EventDate "2019.07.09"]
[EventCountry "IND"]
[SourceTitle "playchess.com"]
[Source "ChessBase"]
[SourceQuality "1"]
[TimeControl "5400+30"]

1. e4 {[%emt 0:00:00]} e6 {[%emt 0:01:24]} 2. d4 {[%emt 0:00:00]} d5 {[%emt 0:00:02]} 3. Nd2 {[%emt 0:00:00]} Nf6 {[%emt 0:00:02]} 4. e5 {[%emt 0:00:30]} Nfd7 {[%emt 0:00:02]} 5. Bd3 {[%emt 0:00:15]} c5 {[%emt 0:00:02]} 6. c3 {[%emt 0:00:20]} Nc6 {[%emt 0:00:01]} 7. Ne2 {[%emt 0:00:09]} cxd4 {[%emt 0:00:04]} 8. cxd4 {[%emt 0:00:12]} f6 {[%emt 0:00:04]} 9. Nf4 {[%emt 0:01:20]} Nxd4 {[%emt 0:00:37]} 10. Qh5+ {[%emt 0:00:47]} Ke7 {[%emt 0:00:23]} 11. Ng6+ {[%emt 0:00:34]} hxg6 {[%emt 0:00:06]} 12. exf6+ {[%emt 0:00:08]} Nxf6 {[%emt 0:00:32]} 13. Qxh8 {[%emt 0:00:09]} Kf7 {[%emt 0:00:34]} 14. Qh4 {[%emt 0:12:38]} e5 {[%emt 0:04:38]} 15. O-O {[%emt 0:06:26]} Be7 {[%emt 1:15:24]} 16. f3 {[%emt 0:03:26]} Bf5 {[%emt 0:00:55]} 17. Bxf5 {[%emt 0:01:46]} gxf5 {[%emt 0:02:22]} 18. Kh1 {[%emt 0:01:33]} Qh8 {[%emt 0:06:52]} 19. Qxh8 {[%emt 0:08:25]} Rd8 {[%emt 0:05:26]} 20. Qf8+ Rxf8 {[%emt 0:00:00]} 21. Rd1 {[%emt 0:00:41]} Rh8 {[%emt 0:00:00]} 22. Nf1 {[%emt 0:01:11]} f4 {[%emt 0:00:00]} 23. Bd2 {[%emt 0:03:53]} Nc6 {[%emt 0:00:00]} 24. Rac1 {[%emt 0:00:33]} Ke6 {[%emt 0:01:01]} 25. a3 {[%emt 0:03:26]} a6 {[%emt 0:00:21]} 26. Be1 {[%emt 0:03:35]} Nd7 {[%emt 0:00:56]} 27. Nd2 {[%emt 0:00:17]} 0-1

[Event "36th National Sub Junior 2019"]
[Site "Tiruchengode"]
[Date "2019.07.11"]
[Round "4.5"]
[White "Varsha Ramesh"]
[Black "Meenatchi Rajam V"]
[Result "1/2-1/2"]
[ECO "B81"]
[WhiteElo "1814"]
[BlackElo "1564"]
[Annotator "NA"]
[PlyCount "66"]
[EventDate "2019.07.09"]
[EventCountry "IND"]
[SourceTitle "playchess.com"]
[Source "ChessBase"]
[SourceQuality "1"]
[TimeControl "5400+30"]

1. e4 {[%emt 0:00:00]} c5 {[%emt 0:00:00]} 2. Nf3 {[%emt 0:00:18]} e6 {[%emt 0:00:00]} 3. d4 {[%emt 0:00:05]} cxd4 {[%emt 0:00:00]} 4. Nxd4 {[%emt 0:00:05]} Nf6 {[%emt 0:00:01]} 5. Nc3 {[%emt 0:00:07]} d6 {[%emt 0:00:03]} 6. g4 {[%emt 0:00:05]} Be7 {[%emt 0:00:18]} 7. g5 {[%emt 0:00:23]} Nfd7 {[%emt 0:00:07]} 8. h4 {[%emt 0:00:07]} a6 {[%emt 0:00:54]} 9. Be3 {[%emt 0:00:11]} Qc7 {[%emt 0:00:30]} 10. Qd2 {[%emt 0:01:34]} Nc6 {[%emt 0:01:43]} 11. O-O-O {[%emt 0:00:40]} b5 {[%emt 0:02:20]} 12. f4 {[%emt 0:06:24]} Bb7 {[%emt 0:07:44]} 13. Rg1 {[%emt 0:06:57]} Nc5 {[%emt 0:09:47]} 14. Bg2 {[%emt 0:08:47]} Na5 {[%emt 0:03:13]} 15. a3 {[%emt 0:23:21]} e5 {[%emt 0:11:38]} 16. Kb1 {[%emt 0:11:06]} exd4 {[%emt 0:00:25]} 17. Bxd4 {[%emt 0:00:26]} Nc4 {[%emt 0:00:22]} 18. Qf2 {[%emt 0:00:26]} Ne6 {[%emt 0:01:33]} 19. f5 {[%emt 0:00:52]} Nxd4 {[%emt 0:00:43]} 20. Qxd4 {[%emt 0:01:07]} f6 {[%emt 0:05:20]} 21. Bf3 {[%emt 0:01:26]} O-O {[%emt 0:03:28]} 22. Ne2 {[%emt 0:03:05]} d5 {[%emt 0:05:44]} 23. exd5 {[%emt 0:01:52]} Bc5 {[%emt 0:00:06]} 24. d6 {[%emt 0:05:17]} Bxd4 {[%emt 0:01:26]} 25. dxc7 {[%emt 0:00:16]} Bxf3 {[%emt 0:00:23]} 26. Rxd4 {[%emt 0:00:34]} Bxe2 {[%emt 0:00:08]} 27. gxf6 {[%emt 0:00:12]} Rxf6 {[%emt 0:05:25]} 28. Rd8+ {[%emt 0:00:06]} Rf8 {[%emt 0:00:05]} 29. Rd7 {[%emt 0:00:26]} Rf7 {[%emt 0:07:22]} 30. Rd8+ {[%emt 0:00:53]} Rf8 {[%emt 0:00:21]} 31. Rd7 {[%emt 0:00:47]} Rf7 {[%emt 0:00:10]} 32. Rd8+ {[%emt 0:00:07]} Rf8 {[%emt 0:00:04]} 33. Rd7 {[%emt 0:00:00]} Rf7 {[%emt 0:00:00]} 1/2-1/2

[Event "36th National Sub Junior 2019"]
[Site "Tiruchengode"]
[Date "2019.07.12"]
[Round "5.1"]
[White "Jyothsna L"]
[Black "Divya Deshmukh"]
[Result "1/2-1/2"]
[ECO "E21"]
[WhiteElo "1939"]
[BlackElo "2373"]
[Annotator "ChessBase"]
[PlyCount "69"]
[EventDate "2019.07.09"]
[EventCountry "IND"]
[SourceTitle "playchess.com"]
[Source "ChessBase"]
[SourceQuality "1"]
[TimeControl "5400+30"]

1. d4 {[%emt 0:01:18]} Nf6 {[%emt 0:00:00]} 2. Nf3 {[%emt 0:00:06]} e6 {[%emt 0:00:00]} 3. c4 {[%emt 0:00:05]} Bb4+ {[%emt 0:00:00]} 4. Bd2 {[%emt 0:00:07]} Qe7 {[%emt 1:32:00]} 5. Nc3 {[%emt 1:30:54]} O-O {[%emt 0:00:00]} 6. Qc2 {[%emt 0:00:00]} d6 {[%emt 0:00:00]} 7. a3 {[%emt 0:00:00]} Bxc3 {[%emt 0:00:00]} 8. Bxc3 {[%emt 0:00:00]} Nbd7 {[%emt 0:00:00]} 9. e3 {[%emt 0:00:00]} b6 {[%emt 0:00:00]} 10. Bd3 {[%emt 0:00:00]} Bb7 {[%emt 0:00:00]} 11. O-O {[%emt 0:00:00]} e5 {[%emt 0:00:00]} 12. Nd2 {[%emt 0:00:00]} g6 {[%emt 0:00:00]} 13. Rae1 {[%emt 0:00:00]} Rae8 {[%emt 0:00:00]} 14. Qb1 {[%emt 0:00:00]} Nh5 {[%emt 0:00:00]} 15. Be4 {[%emt 0:00:00]} Bxe4 {[%emt 0:00:00]} 16. Qxe4 {[%emt 0:00:00]} Qd8 {[%emt 0:00:00]} 17. dxe5 {[%emt 0:00:00]} dxe5 {[%emt 0:00:00]} 18. Rd1 {[%emt 0:00:00]} Nc5 {[%emt 0:00:00]} 19. Qc2 {[%emt 0:00:00]} Qd3 {[%emt 0:00:00]} 20. Qxd3 {[%emt 0:00:00]} Nxd3 {[%emt 0:00:00]} 21. Nb3 {[%emt 0:03:43]} e4 {[%emt 0:00:00]} 22. Nc1 {[%emt 0:00:55]} Nxc1 {[%emt 0:00:00]} 23. Rxc1 {[%emt 0:00:04]} Rd8 {[%emt 0:00:00]} 24. Rfd1 {[%emt 0:00:27]} f5 {[%emt 0:00:00]} 25. Be5 {[%emt 0:01:17]} c6 {[%emt 0:00:00]} 26. Kf1 {[%emt 0:01:39]} Ng7 {[%emt 0:00:00]} 27. Bxg7 {[%emt 0:01:03]} Kxg7 {[%emt 0:00:00]} 28. Ke2 {[%emt 0:00:22]} Kf6 {[%emt 0:00:00]} 29. b4 {[%emt 0:01:19]} g5 {[%emt 0:00:00]} 30. Rxd8 {[%emt 0:00:45]} Rxd8 {[%emt 0:00:00]} 31. Rd1 {[%emt 0:00:03]} Rxd1 {[%emt 0:00:00]} 32. Kxd1 {[%emt 0:00:03]} Ke5 {[%emt 0:00:00]} 33. Kd2 {[%emt 0:00:08]} h5 {[%emt 0:00:00]} 34. a4 {[%emt 0:01:36]} a5 {[%emt 0:00:00]} 35. c5 {[%emt 0:00:59]} 1/2-1/2

[Event "36th National Sub Junior 2019"]
[Site "Tiruchengode"]
[Date "2019.07.12"]
[Round "5.2"]
[White "Jain Nityata"]
[Black "Mrudul Dehankar"]
[Result "0-1"]
[ECO "B02"]
[WhiteElo "2135"]
[BlackElo "2074"]
[Annotator "NA"]
[PlyCount "82"]
[EventDate "2019.07.09"]
[EventCountry "IND"]
[SourceTitle "playchess.com"]
[Source "ChessBase"]
[SourceQuality "1"]
[TimeControl "5400+30"]

1. e4 {[%emt 0:00:00]} Nf6 {[%emt 0:00:00]} 2. Nc3 {[%emt 0:01:47]} d5 {[%emt 0:00:03]} 3. e5 {[%emt 0:00:58]} d4 {[%emt 0:01:26]} 4. exf6 {[%emt 0:01:22]} dxc3 {[%emt 0:00:06]} 5. fxe7 {[%emt 0:00:19]} cxd2+ {[%emt 0:01:39]} 6. Bxd2 {[%emt 0:00:18]} Qxe7+ {[%emt 0:07:54]} 7. Qe2 {[%emt 0:04:55]} Bg4 {[%emt 0:06:36]} 8. Qxe7+ {[%emt 0:04:13]} Bxe7 {[%emt 0:00:02]} 9. Be2 {[%emt 0:00:09]} Bf5 {[%emt 0:00:54]} 10. O-O-O {[%emt 0:01:33]} Nc6 {[%emt 0:02:27]} 11. Nf3 {[%emt 0:04:53]} O-O-O {[%emt 0:06:06]} 12. Bc4 {[%emt 0:05:34]} f6 {[%emt 0:10:30]} 13. Be3 {[%emt 0:06:08]} a6 {[%emt 0:06:12]} 14. Rhe1 {[%emt 0:09:20]} Bd6 {[%emt 0:03:54]} 15. a3 {[%emt 0:13:37]} Rhe8 {[%emt 0:06:45]} 16. Bd3 {[%emt 0:07:18]} Bxd3 {[%emt 0:05:48]} 17. Rxd3 {[%emt 0:01:45]} Na5 {[%emt 0:00:57]} 18. Nd2 {[%emt 0:15:26]} f5 {[%emt 0:16:35]} 19. g3 {[%emt 0:00:57]} f4 {[%emt 0:01:31]} 20. gxf4 {[%emt 0:01:04]} Bxf4 {[%emt 0:00:34]} 21. Rxd8+ {[%emt 0:04:03]} Kxd8 {[%emt 0:00:01]} 22. Nf1 {[%emt 0:01:35]} Be5 {[%emt 0:04:05]} 23. Bg5+ {[%emt 0:02:55]} Kc8 {[%emt 0:00:28]} 24. Kb1 {[%emt 0:02:39]} Kd7 {[%emt 0:02:48]} 25. Nd2 {[%emt 0:04:14]} h6 {[%emt 0:04:28]} 26. Nf3 {[%emt 0:00:18]} Nc4 {[%emt 0:04:28]} 27. Nxe5+ {[%emt 0:00:21]} Rxe5 {[%emt 0:00:26]} 28. Rxe5 {[%emt 0:00:58]} Nxe5 {[%emt 0:00:02]} 29. Bf4 {[%emt 0:00:53]} Nf3 {[%emt 0:00:21]} 30. h3 {[%emt 0:04:15]} g5 {[%emt 0:00:28]} 31. Be3 {[%emt 0:00:35]} Ng1 {[%emt 0:00:17]} 32. Kc1 {[%emt 0:00:58]} Nxh3 {[%emt 0:00:05]} 33. Kd2 {[%emt 0:00:14]} Ke6 {[%emt 0:00:45]} 34. Bd4 {[%emt 0:00:49]} h5 {[%emt 0:01:27]} 35. Ke3 {[%emt 0:00:15]} Nf4 {[%emt 0:01:36]} 36. f3 {[%emt 0:00:45]} h4 {[%emt 0:00:58]} 37. Ke4 {[%emt 0:00:33]} Ne2 {[%emt 0:00:18]} 38. Bh8 {[%emt 0:00:32]} h3 {[%emt 0:00:35]} 39. Be5 {[%emt 0:00:27]} Nf4 {[%emt 0:00:03]} 40. Bxf4 {[%emt 0:00:29]} gxf4 {[%emt 0:00:02]} 41. Kxf4 {[%emt 0:00:27]} h2 {[%emt 0:00:02]} 0-1

[Event "36th National Sub Junior 2019"]
[Site "Tiruchengode"]
[Date "2019.07.12"]
[Round "5.3"]
[White "Sai Divya M"]
[Black "Chinnam Vyshnavi"]
[Result "1-0"]
[ECO "A58"]
[WhiteElo "1784"]
[BlackElo "1664"]
[Annotator "NA"]
[PlyCount "101"]
[EventDate "2019.07.09"]
[EventCountry "IND"]
[SourceTitle "playchess.com"]
[Source "ChessBase"]
[SourceQuality "1"]
[TimeControl "5400+30"]

1. d4 {[%emt 0:00:00]} Nf6 {[%emt 0:00:00]} 2. c4 {[%emt 0:00:48]} c5 {[%emt 0:00:46]} 3. d5 {[%emt 0:00:52]} b5 {[%emt 0:00:25]} 4. cxb5 {[%emt 0:02:11]} a6 {[%emt 0:02:29]} 5. bxa6 {[%emt 0:00:42]} g6 {[%emt 0:00:25]} 6. Nc3 {[%emt 0:02:58]} Bxa6 {[%emt 0:00:26]} 7. g3 {[%emt 0:02:00]} d6 {[%emt 0:00:27]} 8. Bg2 {[%emt 0:00:40]} Bg7 {[%emt 0:00:28]} 9. Nf3 {[%emt 0:01:54]} Nbd7 {[%emt 0:00:38]} 10. O-O {[%emt 0:03:45]} Nb6 {[%emt 0:02:03]} 11. Re1 {[%emt 0:04:10]} Bc4 {[%emt 0:06:34]} 12. e4 {[%emt 0:04:34]} Nfd7 {[%emt 0:08:06]} 13. Qc2 {[%emt 0:01:33]} O-O {[%emt 0:02:36]} 14. b3 {[%emt 0:03:12]} Ba6 {[%emt 0:01:27]} 15. Bb2 {[%emt 0:00:42]} Qb8 {[%emt 0:08:18]} 16. Nd1 {[%emt 0:06:58]} Nf6 {[%emt 0:02:55]} 17. Ne3 {[%emt 0:02:48]} Rc8 {[%emt 0:02:34]} 18. Nd2 {[%emt 0:01:36]} Ra7 {[%emt 0:16:23]} 19. Rec1 {[%emt 0:05:36]} Rb7 {[%emt 0:06:16]} 20. Bh3 {[%emt 0:11:14]} Rcc7 {[%emt 0:01:44]} 21. Rab1 {[%emt 0:11:01]} Nc8 {[%emt 0:03:02]} 22. Ndc4 {[%emt 0:01:08]} Qa8 {[%emt 0:01:22]} 23. Bc3 {[%emt 0:01:57]} Bb5 {[%emt 0:04:08]} 24. Ba5 {[%emt 0:02:29]} Rd7 {[%emt 0:03:11]} 25. Bxd7 {[%emt 0:00:55]} Nxd7 {[%emt 0:00:22]} 26. a4 {[%emt 0:04:12]} Ba6 {[%emt 0:02:30]} 27. Bc3 {[%emt 0:01:04]} f6 {[%emt 0:05:19]} 28. Na5 {[%emt 0:03:47]} Rc7 {[%emt 0:00:26]} 29. Nc6 {[%emt 0:00:56]} Ndb6 {[%emt 0:00:56]} 30. b4 {[%emt 0:01:58]} Bb7 {[%emt 0:03:06]} 31. a5 {[%emt 0:00:26]} Nd7 {[%emt 0:01:18]} 32. b5 {[%emt 0:00:21]} Nf8 {[%emt 0:01:44]} 33. a6 {[%emt 0:02:03]} Bxc6 {[%emt 0:00:15]} 34. dxc6 {[%emt 0:00:11]} Nb6 {[%emt 0:01:26]} 35. Ba5 {[%emt 0:00:16]} Qa7 {[%emt 0:00:48]} 36. Bxb6 {[%emt 0:00:06]} Qxb6 {[%emt 0:00:07]} 37. Nd5 {[%emt 0:00:05]} Qb8 {[%emt 0:00:37]} 38. Nxc7 {[%emt 0:00:08]} Qxc7 {[%emt 0:00:05]} 39. b6 {[%emt 0:00:11]} Qxc6 {[%emt 0:00:09]} 40. b7 {[%emt 0:00:09]} Bh6 {[%emt 0:01:02]} 41. b8=Q {[%emt 0:00:31]} Bxc1 {[%emt 0:00:10]} 42. Rxc1 {[%emt 0:00:22]} Qxa6 {[%emt 0:00:07]} 43. Qc4+ {[%emt 0:00:06]} Qxc4 {[%emt 0:00:10]} 44. Rxc4 {[%emt 0:00:05]} Kg7 {[%emt 0:00:13]} 45. Qe8 {[%emt 0:00:12]} d5 {[%emt 0:00:15]} 46. Qxe7+ {[%emt 0:00:06]} Kh6 {[%emt 0:00:28]} 47. Qxf8+ {[%emt 0:00:05]} Kh5 {[%emt 0:00:09]} 48. Qxf6 {[%emt 0:00:08]} g5 {[%emt 0:00:14]} 49. exd5 {[%emt 0:00:13]} g4 {[%emt 0:00:31]} 50. h4 {[%emt 0:00:44]} gxh3 {[%emt 0:00:39]} 51. Rh4# {[%emt 0:00:05]} 1-0

[Event "36th National Sub Junior 2019"]
[Site "Tiruchengode"]
[Date "2019.07.12"]
[Round "5.4"]
[White "Rebecca Jesumarian"]
[Black "Bhagyashree Patil"]
[Result "0-1"]
[ECO "E18"]
[WhiteElo "1566"]
[BlackElo "1703"]
[Annotator "NA"]
[PlyCount "82"]
[EventDate "2019.07.09"]
[EventCountry "IND"]
[SourceTitle "playchess.com"]
[Source "ChessBase"]
[SourceQuality "1"]
[TimeControl "5400+30"]

1. d4 {[%emt 0:00:41]} d5 {[%emt 0:00:00]} 2. c4 {[%emt 0:00:13]} e6 {[%emt 0:00:00]} 3. Nf3 {[%emt 0:00:51]} Nf6 {[%emt 0:01:23]} 4. g3 {[%emt 0:00:56]} Be7 {[%emt 0:01:02]} 5. Bg2 {[%emt 0:00:16]} O-O {[%emt 0:02:24]} 6. O-O {[%emt 0:00:17]} b6 {[%emt 0:06:09]} 7. cxd5 {[%emt 0:03:49]} exd5 {[%emt 0:00:32]} 8. Nc3 {[%emt 0:01:39]} Bb7 {[%emt 0:02:37]} 9. Bf4 {[%emt 0:03:05]} Nbd7 {[%emt 0:07:01]} 10. Rc1 {[%emt 0:04:38]} c5 {[%emt 0:08:00]} 11. dxc5 {[%emt 0:04:59]} bxc5 {[%emt 0:02:16]} 12. Nh4 {[%emt 0:02:39]} Nh5 {[%emt 0:08:00]} 13. Nxd5 {[%emt 0:33:41]} Bxh4 {[%emt 0:03:39]} 14. gxh4 {[%emt 0:00:46]} Bxd5 {[%emt 0:04:20]} 15. Bxd5 {[%emt 0:01:18]} Nxf4 {[%emt 0:00:10]} 16. Bxa8 {[%emt 0:00:36]} Qxa8 {[%emt 0:00:14]} 17. f3 {[%emt 0:01:46]} Qc6 {[%emt 0:00:09]} 18. Kh1 {[%emt 0:02:41]} Re8 {[%emt 0:00:56]} 19. e4 {[%emt 0:02:30]} Ne5 {[%emt 0:03:26]} 20. Rc3 {[%emt 0:04:30]} c4 {[%emt 0:13:05]} 21. b3 {[%emt 0:07:02]} Qf6 {[%emt 0:06:00]} 22. bxc4 {[%emt 0:03:55]} Rd8 {[%emt 0:00:30]} 23. Qc2 {[%emt 0:01:50]} Ned3 {[%emt 0:00:11]} 24. Rb3 {[%emt 0:03:22]} Qxh4 {[%emt 0:00:20]} 25. c5 {[%emt 0:01:47]} Qh3 {[%emt 0:00:23]} 26. Rbb1 {[%emt 0:00:09]} Nxc5 {[%emt 0:30:13]} 27. Qf2 {[%emt 0:02:16]} Ncd3 {[%emt 0:00:00]} 28. Qg3 {[%emt 0:00:25]} Qh6 {[%emt 0:00:00]} 29. Rbd1 {[%emt 0:01:32]} g6 {[%emt 0:00:00]} 30. Rd2 {[%emt 0:03:51]} Rc8 {[%emt 0:00:00]} 31. Rfd1 {[%emt 0:00:54]} Rc5 {[%emt 0:00:00]} 32. Qg1 {[%emt 0:01:00]} Rg5 {[%emt 0:00:00]} 33. Qf1 {[%emt 0:02:23]} Rh5 {[%emt 0:00:00]} 34. Rc2 {[%emt 0:01:14]} Ne5 {[%emt 0:00:00]} 35. Rd8+ {[%emt 0:00:48]} Kg7 {[%emt 0:00:00]} 36. Qa1 {[%emt 0:00:30]} Qg5 {[%emt 0:00:00]} 37. Rd1 {[%emt 0:00:42]} Qh4 {[%emt 0:00:00]} 38. Rf1 {[%emt 0:01:26]} Qh3 {[%emt 0:00:00]} 39. a3 {[%emt 0:01:00]} Kh6 {[%emt 0:00:00]} 40. Qc1 {[%emt 0:00:39]} Rg5 {[%emt 0:00:00]} 41. Qd1 {[%emt 0:00:21]} Rg2 {[%emt 0:00:00]} 0-1

[Event "36th National Sub Junior 2019"]
[Site "Tiruchengode"]
[Date "2019.07.12"]
[Round "5.5"]
[White "Dhyana Patel"]
[Black "Shrija, K M"]
[Result "1-0"]
[ECO "C69"]
[WhiteElo "1900"]
[BlackElo "1535"]
[Annotator "NA"]
[PlyCount "93"]
[EventDate "2019.07.09"]
[EventCountry "IND"]
[SourceTitle "playchess.com"]
[Source "ChessBase"]
[SourceQuality "1"]
[TimeControl "5400+30"]

1. e4 {[%emt 0:00:00]} e5 {[%emt 0:00:00]} 2. Nf3 {[%emt 0:00:00]} Nc6 {[%emt 0:00:00]} 3. Bb5 {[%emt 0:00:00]} a6 {[%emt 0:00:04]} 4. Bxc6 {[%emt 0:00:07]} dxc6 {[%emt 0:00:08]} 5. O-O {[%emt 0:00:07]} f6 {[%emt 0:00:12]} 6. d4 {[%emt 0:02:04]} exd4 {[%emt 0:00:19]} 7. Nxd4 {[%emt 0:01:56]} c5 {[%emt 0:00:34]} 8. Nb3 {[%emt 0:00:41]} Qxd1 {[%emt 0:00:48]} 9. Rxd1 {[%emt 0:00:02]} Bg4 {[%emt 0:00:57]} 10. f3 {[%emt 0:00:28]} Be6 {[%emt 0:00:17]} 11. Bf4 {[%emt 0:01:31]} c4 {[%emt 0:01:24]} 12. Nd4 {[%emt 0:04:00]} O-O-O {[%emt 0:01:01]} 13. Nc3 {[%emt 0:00:32]} Bf7 {[%emt 0:00:43]} 14. Nf5 {[%emt 0:05:30]} Rxd1+ {[%emt 0:04:30]} 15. Rxd1 {[%emt 0:00:08]} g6 {[%emt 0:00:09]} 16. Ne3 {[%emt 0:03:58]} Ne7 {[%emt 0:01:44]} 17. Kf1 {[%emt 0:02:28]} b6 {[%emt 0:19:20]} 18. Ke2 {[%emt 0:13:14]} Bg7 {[%emt 0:01:04]} 19. Ncd5 {[%emt 0:01:09]} Nxd5 {[%emt 0:00:24]} 20. Nxd5 {[%emt 0:00:56]} Bxd5 {[%emt 0:00:16]} 21. Rxd5 {[%emt 0:00:14]} Rd8 {[%emt 0:00:24]} 22. Rxd8+ {[%emt 0:03:38]} Kxd8 {[%emt 0:00:07]} 23. Ke3 {[%emt 0:00:37]} c5 {[%emt 0:04:52]} 24. g4 {[%emt 0:02:05]} Kd7 {[%emt 0:00:22]} 25. c3 {[%emt 0:01:16]} g5 {[%emt 0:11:59]} 26. Bg3 {[%emt 0:00:05]} Ke6 {[%emt 0:04:00]} 27. h4 {[%emt 0:01:16]} h6 {[%emt 0:00:29]} 28. f4 {[%emt 0:05:45]} b5 {[%emt 0:00:15]} 29. f5+ {[%emt 0:01:32]} Kd7 {[%emt 0:00:20]} 30. Bb8 {[%emt 0:02:31]} Kc6 {[%emt 0:13:09]} 31. hxg5 {[%emt 0:00:39]} hxg5 {[%emt 0:00:05]} 32. Bg3 {[%emt 0:02:58]} Bh8 {[%emt 0:03:16]} 33. Bh2 {[%emt 0:02:31]} Bg7 {[%emt 0:03:12]} 34. Bb8 {[%emt 0:00:12]} b4 {[%emt 0:13:58]} 35. a3 {[%emt 0:03:47]} bxc3 {[%emt 0:11:04]} 36. bxc3 {[%emt 0:00:01]} Kb5 {[%emt 0:00:07]} 37. Bd6 {[%emt 0:01:42]} Kc6 {[%emt 0:01:53]} 38. Be7 {[%emt 0:00:47]} Bh8 {[%emt 0:02:45]} 39. e5 {[%emt 0:00:11]} fxe5 {[%emt 0:00:18]} 40. Ke4 {[%emt 0:00:14]} Kd7 {[%emt 0:00:13]} 41. Bxg5 {[%emt 0:00:29]} Kd6 {[%emt 0:01:35]} 42. Bh6 {[%emt 0:00:33]} Kd7 {[%emt 0:00:14]} 43. g5 {[%emt 0:00:10]} Ke7 {[%emt 0:00:24]} 44. f6+ {[%emt 0:00:46]} Kf7 {[%emt 0:00:12]} 45. Kf5 {[%emt 0:00:06]} Bxf6 {[%emt 0:00:37]} 46. gxf6 {[%emt 0:00:05]} e4 {[%emt 0:00:05]} 47. Be3 {[%emt 0:00:11]} 1-0

[Event "36th National Sub Junior 2019"]
[Site "Tiruchengode"]
[Date "2019.07.12"]
[Round "6.1"]
[White "Mrudul Dehankar"]
[Black "Jyothsna L"]
[Result "1/2-1/2"]
[ECO "A06"]
[WhiteElo "2074"]
[BlackElo "1939"]
[Annotator "NA"]
[PlyCount "60"]
[EventDate "2019.07.09"]
[EventCountry "IND"]
[SourceTitle "playchess.com"]
[Source "ChessBase"]
[SourceQuality "1"]
[TimeControl "5400+30"]

1. Nf3 {[%emt 0:00:00]} d5 {[%emt 0:00:23]} 2. b3 {[%emt 0:00:00]} c6 {[%emt 0:02:47]} 3. Bb2 {[%emt 0:00:15]} Bf5 {[%emt 0:00:39]} 4. e3 {[%emt 0:01:58]} e6 {[%emt 0:02:04]} 5. Be2 {[%emt 0:00:45]} Nd7 {[%emt 0:02:59]} 6. d3 {[%emt 0:05:27]} h6 {[%emt 0:04:57]} 7. Nbd2 {[%emt 0:00:39]} Ngf6 {[%emt 0:00:33]} 8. O-O {[%emt 0:03:53]} Be7 {[%emt 0:02:58]} 9. c4 {[%emt 0:04:24]} O-O {[%emt 0:01:58]} 10. a3 {[%emt 0:02:47]} a5 {[%emt 0:07:23]} 11. Bc3 {[%emt 0:07:39]} Qb6 {[%emt 0:15:28]} 12. Qc2 {[%emt 0:03:33]} Rfd8 {[%emt 0:02:41]} 13. Qb2 {[%emt 0:06:49]} Bh7 {[%emt 0:21:26]} 14. Rfd1 {[%emt 0:08:27]} Nc5 {[%emt 0:10:36]} 15. Bd4 {[%emt 0:04:43]} Qc7 {[%emt 0:01:58]} 16. Ne5 {[%emt 0:01:52]} Ne8 {[%emt 0:07:04]} 17. b4 {[%emt 0:07:47]} axb4 {[%emt 0:07:27]} 18. axb4 {[%emt 0:01:10]} Nd7 {[%emt 0:00:12]} 19. c5 {[%emt 0:08:49]} f6 {[%emt 0:01:17]} 20. Nxd7 {[%emt 0:01:56]} Qxd7 {[%emt 0:00:03]} 21. f4 {[%emt 0:01:01]} Nc7 {[%emt 0:00:43]} 22. Rxa8 {[%emt 0:04:53]} Rxa8 {[%emt 0:00:02]} 23. Ra1 {[%emt 0:00:22]} Qc8 {[%emt 0:00:50]} 24. Rxa8 {[%emt 0:08:29]} Qxa8 {[%emt 0:00:13]} 25. Qa1 {[%emt 0:00:32]} Qxa1+ {[%emt 0:00:45]} 26. Bxa1 {[%emt 0:00:18]} Na6 {[%emt 0:04:32]} 27. Bc3 {[%emt 0:00:38]} Bd8 {[%emt 0:00:21]} 28. Nb3 {[%emt 0:02:02]} Kf7 {[%emt 0:00:26]} 29. d4 {[%emt 0:02:29]} Bc2 {[%emt 0:00:23]} 30. Na1 {[%emt 0:08:04]} Ba4 {[%emt 0:00:16]} 1/2-1/2